[Event "Late-Titled-Tuesday-Blitz-September-19-2023"]
[Site "Chess.com"]
[Date "2023.09.19"]
[Round "5"]
[White "Emp3rador"]
[Black "DefiantChair"]
[Result "1-0"]
[WhiteElo "2493"]
[BlackElo "2587"]
[TimeControl "180+1"]
[EndTime "14:51:48 PDT"]
[Termination "Emp3rador won by resignation"]

1. e4 {[%clk 0:02:46.7]} 1... c5 {[%clk 0:02:59.2]} 2. Nf3 {[%clk 0:02:46.5]}
2... d6 {[%clk 0:02:59.2]} 3. Bb5+ {[%clk 0:02:45.8]} 3... Nd7 {[%clk
0:02:58.8]} 4. d4 {[%clk 0:02:45]} 4... cxd4 {[%clk 0:02:59.6]} 5. Qxd4 {[%clk
0:02:45.7]} 5... a6 {[%clk 0:03:00.2]} 6. Bxd7+ {[%clk 0:02:45]} 6... Bxd7
{[%clk 0:03:01.1]} 7. Nc3 {[%clk 0:02:45.5]} 7... h6 {[%clk 0:02:56.6]} 8. e5
{[%clk 0:02:43]} 8... Bc6 {[%clk 0:02:50.2]} 9. exd6 {[%clk 0:02:40.6]} 9... e6
{[%clk 0:02:47]} 10. Bf4 {[%clk 0:02:37.5]} 10... Nf6 {[%clk 0:02:36.9]} 11.
O-O-O {[%clk 0:02:36]} 11... Bxf3 {[%clk 0:02:34.8]} 12. gxf3 {[%clk 0:02:36.9]}
12... Qd7 {[%clk 0:02:34.5]} 13. Be5 {[%clk 0:02:26.5]} 13... Rd8 {[%clk
0:02:25.3]} 14. Bxf6 {[%clk 0:02:14.9]} 14... gxf6 {[%clk 0:02:26.2]} 15. Qxf6
{[%clk 0:02:15]} 15... Rg8 {[%clk 0:02:25.6]} 16. Ne4 {[%clk 0:02:14.2]} 16...
Bg7 {[%clk 0:02:18.8]} 17. Rhg1 {[%clk 0:02:11.3]} 17... Kf8 {[%clk 0:02:13.3]}
18. Rxg7 {[%clk 0:01:59.4]} 18... Rxg7 {[%clk 0:02:00.4]} 19. Qxh6 {[%clk
0:01:59.4]} 19... f5 {[%clk 0:01:36.3]} 20. Nf6 {[%clk 0:01:56.4]} 20... Qf7
{[%clk 0:00:42.7]} 21. Rg1 {[%clk 0:01:50.5]} 21... Rxd6 {[%clk 0:00:29.7]} 22.
Qh8+ {[%clk 0:01:44.2]} 1-0

[Event "Late-Titled-Tuesday-Blitz-September-19-2023"]
[Site "Chess.com"]
[Date "2023.09.19"]
[Round "5"]
[White "traack"]
[Black "Djager97"]
[Result "0-1"]
[WhiteElo "2366"]
[BlackElo "2538"]
[TimeControl "180+1"]
[EndTime "14:51:51 PDT"]
[Termination "Djager97 won by checkmate"]

1. e4 {[%clk 0:03:00.9]} 1... e5 {[%clk 0:02:59.1]} 2. Nf3 {[%clk 0:03:00.8]}
2... Nc6 {[%clk 0:02:59.8]} 3. Bb5 {[%clk 0:03:01]} 3... a6 {[%clk 0:02:59.7]}
4. Ba4 {[%clk 0:03:00.5]} 4... Nf6 {[%clk 0:02:59.6]} 5. O-O {[%clk 0:02:59.4]}
5... b5 {[%clk 0:03:00.2]} 6. Bb3 {[%clk 0:02:59.2]} 6... Bc5 {[%clk 0:03:00.9]}
7. Re1 {[%clk 0:02:59.5]} 7... d6 {[%clk 0:02:58]} 8. c3 {[%clk 0:02:57.4]} 8...
O-O {[%clk 0:02:43.3]} 9. h3 {[%clk 0:02:52.8]} 9... Bb6 {[%clk 0:02:40.9]} 10.
d3 {[%clk 0:02:49.2]} 10... Ne7 {[%clk 0:02:38.5]} 11. Bg5 {[%clk 0:02:48.3]}
11... Ng6 {[%clk 0:02:38.2]} 12. Nbd2 {[%clk 0:02:48.8]} 12... h6 {[%clk
0:02:38]} 13. Be3 {[%clk 0:02:48.1]} 13... c5 {[%clk 0:02:33.4]} 14. a4 {[%clk
0:02:45.3]} 14... Bb7 {[%clk 0:02:23.3]} 15. axb5 {[%clk 0:02:22]} 15... axb5
{[%clk 0:02:24.2]} 16. Rxa8 {[%clk 0:02:21.9]} 16... Bxa8 {[%clk 0:02:22.8]} 17.
Qc2 {[%clk 0:02:08.6]} 17... d5 {[%clk 0:02:19.7]} 18. exd5 {[%clk 0:02:07.9]}
18... Nxd5 {[%clk 0:02:17]} 19. Bxd5 {[%clk 0:02:02.8]} 19... Bxd5 {[%clk
0:02:17.3]} 20. c4 {[%clk 0:02:03.3]} 20... bxc4 {[%clk 0:02:13.5]} 21. Nxc4
{[%clk 0:01:58.2]} 21... Bxf3 {[%clk 0:02:12.5]} 22. gxf3 {[%clk 0:01:57.5]}
22... Bc7 {[%clk 0:01:59.8]} 23. Bxc5 {[%clk 0:01:32]} 23... Nf4 {[%clk
0:01:56.7]} 24. Re4 {[%clk 0:01:07.9]} 24... Qg5+ {[%clk 0:01:48.1]} 25. Kf1
{[%clk 0:01:07]} 25... Qg2+ {[%clk 0:01:49]} 26. Ke1 {[%clk 0:01:06.7]} 26...
Ra8 {[%clk 0:01:37]} 27. Na3 {[%clk 0:01:01.8]} 27... Qxf3 {[%clk 0:01:33.6]}
28. Be3 {[%clk 0:00:57.3]} 28... Ba5+ {[%clk 0:01:32.6]} 29. Bd2 {[%clk
0:00:52.9]} 29... Nxd3+ {[%clk 0:01:32.2]} 30. Kf1 {[%clk 0:00:50.7]} 30...
Qxf2# {[%clk 0:01:32]} 0-1

[Event "Late-Titled-Tuesday-Blitz-September-19-2023"]
[Site "Chess.com"]
[Date "2023.09.19"]
[Round "5"]
[White "Goryachkina"]
[Black "Dacean99"]
[Result "1-0"]
[WhiteElo "2677"]
[BlackElo "2498"]
[TimeControl "180+1"]
[EndTime "14:51:52 PDT"]
[Termination "Goryachkina won by resignation"]

1. e4 {[%clk 0:02:58.6]} 1... d6 {[%clk 0:02:55.9]} 2. d4 {[%clk 0:02:58]} 2...
Nf6 {[%clk 0:02:56.1]} 3. Nc3 {[%clk 0:02:57.9]} 3... g6 {[%clk 0:02:55.3]} 4.
Be3 {[%clk 0:02:56.5]} 4... a6 {[%clk 0:02:55.5]} 5. Nf3 {[%clk 0:02:55.3]} 5...
b5 {[%clk 0:02:54.7]} 6. e5 {[%clk 0:02:54.3]} 6... Ng4 {[%clk 0:02:49.9]} 7.
Bd3 {[%clk 0:02:34.5]} 7... dxe5 {[%clk 0:02:43.5]} 8. Nxe5 {[%clk 0:02:29.5]}
8... Nxe3 {[%clk 0:02:43.2]} 9. fxe3 {[%clk 0:02:28.3]} 9... Bg7 {[%clk
0:02:42.6]} 10. Qf3 {[%clk 0:02:13.9]} 10... Bxe5 {[%clk 0:02:34.1]} 11. Qxa8
{[%clk 0:02:13.7]} 11... Bd6 {[%clk 0:02:29]} 12. Qxb8 {[%clk 0:02:09.3]} 12...
O-O {[%clk 0:02:29]} 13. O-O-O {[%clk 0:02:02.9]} 13... Qd7 {[%clk 0:02:23.5]}
14. Ne4 {[%clk 0:01:57.8]} 14... Bb4 {[%clk 0:02:17.9]} 15. a3 {[%clk
0:01:48.6]} 15... Ba5 {[%clk 0:02:18]} 16. Nc5 {[%clk 0:01:46.1]} 16... Qc6
{[%clk 0:02:12.6]} 17. Be4 {[%clk 0:01:38.1]} 17... Qf6 {[%clk 0:02:09.1]} 18.
Qa8 {[%clk 0:01:28.8]} 18... Qg5 {[%clk 0:02:04.5]} 19. Qd5 {[%clk 0:01:22.2]}
19... Qxe3+ {[%clk 0:02:03.9]} 20. Kb1 {[%clk 0:01:22.7]} 20... e6 {[%clk
0:02:01.3]} 21. Qb3 {[%clk 0:01:22.2]} 21... Qg5 {[%clk 0:02:00]} 22. h4 {[%clk
0:01:19.5]} 22... Qh6 {[%clk 0:01:58]} 23. h5 {[%clk 0:01:18]} 23... gxh5 {[%clk
0:01:58.4]} 24. Qf3 {[%clk 0:01:16.6]} 24... f5 {[%clk 0:01:56.1]} 25. Bd3
{[%clk 0:01:14.8]} 25... Qg7 {[%clk 0:01:49.6]} 26. Rxh5 {[%clk 0:01:14.4]}
26... Qxd4 {[%clk 0:01:48.8]} 27. Nb3 {[%clk 0:01:08.3]} 27... Qb6 {[%clk
0:01:46.2]} 28. Rdh1 {[%clk 0:01:05.9]} 28... Rf7 {[%clk 0:01:43.7]} 29. Nxa5
{[%clk 0:01:04]} 29... Qxa5 {[%clk 0:01:40.6]} 30. Qa8 {[%clk 0:01:03.9]} 30...
Rf8 {[%clk 0:01:32]} 31. Rxh7 {[%clk 0:01:03.5]} 1-0

[Event "Late-Titled-Tuesday-Blitz-September-19-2023"]
[Site "Chess.com"]
[Date "2023.09.19"]
[Round "5"]
[White "KVAIDAN"]
[Black "RIPOL"]
[Result "0-1"]
[WhiteElo "2254"]
[BlackElo "2421"]
[TimeControl "180+1"]
[EndTime "14:52:00 PDT"]
[Termination "RIPOL won by resignation"]

1. f4 {[%clk 0:00:14.4]} 1... d5 {[%clk 0:02:56.6]} 2. Nf3 {[%clk 0:00:15.3]}
2... c6 {[%clk 0:02:56.2]} 3. e3 {[%clk 0:00:15.5]} 3... Bg4 {[%clk 0:02:55.1]}
4. b3 {[%clk 0:00:16.4]} 4... Nd7 {[%clk 0:02:53.2]} 5. Be2 {[%clk 0:00:15.2]}
5... Qc7 {[%clk 0:02:48.4]} 6. Bb2 {[%clk 0:00:14.6]} 6... Bxf3 {[%clk
0:02:46.2]} 7. O-O {[%clk 0:00:15]} 7... Bxe2 {[%clk 0:02:44.9]} 8. Qxe2 {[%clk
0:00:15.1]} 8... e5 {[%clk 0:02:38.7]} 9. d3 {[%clk 0:00:16]} 9... Ngf6 {[%clk
0:02:35.5]} 10. fxe5 {[%clk 0:00:16]} 10... Nxe5 {[%clk 0:02:34.3]} 11. e4
{[%clk 0:00:16.9]} 11... dxe4 {[%clk 0:02:30.2]} 12. Nd2 {[%clk 0:00:15.1]}
12... O-O-O {[%clk 0:01:56.8]} 13. Rf5 {[%clk 0:00:12.5]} 13... Ng6 {[%clk
0:01:42.5]} 14. Nc4 {[%clk 0:00:10.4]} 14... exd3 {[%clk 0:01:34.7]} 15. Raf1
{[%clk 0:00:07.9]} 0-1

[Event "Late-Titled-Tuesday-Blitz-September-19-2023"]
[Site "Chess.com"]
[Date "2023.09.19"]
[Round "5"]
[White "YEIKO2017"]
[Black "MergenKakabaev"]
[Result "1-0"]
[WhiteElo "2478"]
[BlackElo "2660"]
[TimeControl "180+1"]
[EndTime "14:52:06 PDT"]
[Termination "YEIKO2017 won by resignation"]

1. e4 {[%clk 0:03:00.9]} 1... e6 {[%clk 0:02:58.4]} 2. Nf3 {[%clk 0:02:59]} 2...
d5 {[%clk 0:02:58.7]} 3. e5 {[%clk 0:02:59.6]} 3... c5 {[%clk 0:02:58.9]} 4. b4
{[%clk 0:03:00.1]} 4... cxb4 {[%clk 0:02:58.8]} 5. d4 {[%clk 0:02:58.7]} 5...
Nc6 {[%clk 0:02:58.1]} 6. a3 {[%clk 0:02:59]} 6... bxa3 {[%clk 0:02:57.2]} 7. c3
{[%clk 0:02:58.8]} 7... Bd7 {[%clk 0:02:55.4]} 8. Bd3 {[%clk 0:02:58]} 8... a6
{[%clk 0:02:53.8]} 9. Bxa3 {[%clk 0:02:53.2]} 9... Bxa3 {[%clk 0:02:50]} 10.
Nxa3 {[%clk 0:02:54.1]} 10... b5 {[%clk 0:02:49.5]} 11. Nc2 {[%clk 0:02:53.3]}
11... Nge7 {[%clk 0:02:43.5]} 12. Ne3 {[%clk 0:02:49]} 12... Na5 {[%clk
0:02:40.5]} 13. Nd2 {[%clk 0:02:43.3]} 13... Nc4 {[%clk 0:02:40.2]} 14. Qg4
{[%clk 0:02:38.3]} 14... O-O {[%clk 0:02:29.1]} 15. Nb3 {[%clk 0:02:28.6]} 15...
Qb6 {[%clk 0:02:10.9]} 16. Nc5 {[%clk 0:02:12.3]} 16... Nxe5 {[%clk 0:02:07.2]}
17. Bxh7+ {[%clk 0:02:12]} 17... Kxh7 {[%clk 0:02:07.3]} 18. Qh5+ {[%clk
0:02:12.5]} 18... Kg8 {[%clk 0:02:07.6]} 19. Qxe5 {[%clk 0:02:12.5]} 19... Bc6
{[%clk 0:02:00]} 20. h4 {[%clk 0:02:09.2]} 20... Qb8 {[%clk 0:01:54.6]} 21. Qg5
{[%clk 0:02:02.5]} 21... f6 {[%clk 0:01:53.8]} 22. Qg4 {[%clk 0:01:49.9]} 22...
e5 {[%clk 0:01:51.3]} 23. h5 {[%clk 0:01:26.3]} 23... Qc8 {[%clk 0:01:43.9]} 24.
Ne6 {[%clk 0:01:25.9]} 24... Rf7 {[%clk 0:01:43.8]} 25. h6 {[%clk 0:01:20.3]}
25... g6 {[%clk 0:01:28.2]} 26. h7+ {[%clk 0:01:06.8]} 26... Rxh7 {[%clk
0:01:24.4]} 27. Rxh7 {[%clk 0:01:04.8]} 27... Kxh7 {[%clk 0:01:25.3]} 28. Qh4+
{[%clk 0:01:04.5]} 28... Kg8 {[%clk 0:01:19.8]} 29. Qxf6 {[%clk 0:01:05.4]} 1-0

[Event "Late-Titled-Tuesday-Blitz-September-19-2023"]
[Site "Chess.com"]
[Date "2023.09.19"]
[Round "5"]
[White "Francisco_Ferrari"]
[Black "mac0504"]
[Result "0-1"]
[WhiteElo "2366"]
[BlackElo "2576"]
[TimeControl "180+1"]
[EndTime "14:52:15 PDT"]
[Termination "mac0504 won by resignation"]

1. e4 {[%clk 0:03:00.9]} 1... c6 {[%clk 0:03:00.1]} 2. d4 {[%clk 0:03:00.4]}
2... g6 {[%clk 0:03:01]} 3. c4 {[%clk 0:02:53.9]} 3... d5 {[%clk 0:03:01.4]} 4.
cxd5 {[%clk 0:02:53.1]} 4... cxd5 {[%clk 0:03:02]} 5. e5 {[%clk 0:02:53.7]} 5...
Nc6 {[%clk 0:03:02.1]} 6. Nc3 {[%clk 0:02:51.8]} 6... f6 {[%clk 0:03:00.2]} 7.
exf6 {[%clk 0:02:44.9]} 7... Nxf6 {[%clk 0:03:00.2]} 8. Nf3 {[%clk 0:02:43.7]}
8... Bg7 {[%clk 0:03:00.3]} 9. h3 {[%clk 0:02:43.3]} 9... O-O {[%clk 0:03:00.7]}
10. Bb5 {[%clk 0:02:39.1]} 10... Bf5 {[%clk 0:02:53.6]} 11. O-O {[%clk
0:02:34.9]} 11... Ne4 {[%clk 0:02:52.6]} 12. Re1 {[%clk 0:02:13.2]} 12... Nxf2
{[%clk 0:02:05.9]} 13. Kxf2 {[%clk 0:02:01.2]} 13... Nxd4 {[%clk 0:02:06.3]} 14.
Kg1 {[%clk 0:01:07.3]} 14... Nc2 {[%clk 0:02:00.4]} 15. Bg5 {[%clk 0:00:47]}
15... Nxe1 {[%clk 0:01:23.9]} 16. Qxe1 {[%clk 0:00:43.5]} 16... Qb6+ {[%clk
0:01:22]} 17. Kh1 {[%clk 0:00:33.2]} 17... Bxc3 {[%clk 0:01:21.7]} 18. Qxc3
{[%clk 0:00:22]} 18... Qxb5 {[%clk 0:01:22.2]} 19. Bxe7 {[%clk 0:00:20.5]} 19...
Rf7 {[%clk 0:01:22.7]} 20. Bg5 {[%clk 0:00:18.7]} 20... Rc8 {[%clk 0:01:22.7]}
21. Bf4 {[%clk 0:00:19]} 21... Rxc3 {[%clk 0:01:22.6]} 0-1

[Event "Late-Titled-Tuesday-Blitz-September-19-2023"]
[Site "Chess.com"]
[Date "2023.09.19"]
[Round "5"]
[White "ChessSwole"]
[Black "ElDivis"]
[Result "1-0"]
[WhiteElo "2715"]
[BlackElo "2515"]
[TimeControl "180+1"]
[EndTime "14:52:47 PDT"]
[Termination "ChessSwole won by checkmate"]

1. d4 {[%clk 0:03:00.9]} 1... Nf6 {[%clk 0:02:58.7]} 2. c4 {[%clk 0:03:01.3]}
2... g6 {[%clk 0:02:57.4]} 3. Nc3 {[%clk 0:02:59.9]} 3... Bg7 {[%clk 0:02:57.9]}
4. e4 {[%clk 0:03:00.5]} 4... d6 {[%clk 0:02:57.6]} 5. Nf3 {[%clk 0:03:00.9]}
5... O-O {[%clk 0:02:57.9]} 6. Be2 {[%clk 0:03:01.2]} 6... e5 {[%clk 0:02:58.2]}
7. d5 {[%clk 0:02:59.7]} 7... a5 {[%clk 0:02:57.4]} 8. Bg5 {[%clk 0:02:59.6]}
8... h6 {[%clk 0:02:58]} 9. Be3 {[%clk 0:02:59.9]} 9... Ng4 {[%clk 0:02:56.7]}
10. Bd2 {[%clk 0:03:00.3]} 10... f5 {[%clk 0:02:51.3]} 11. h3 {[%clk 0:03:00.7]}
11... Nf6 {[%clk 0:02:49.6]} 12. exf5 {[%clk 0:03:01]} 12... gxf5 {[%clk
0:02:48.5]} 13. Qc1 {[%clk 0:03:01.4]} 13... f4 {[%clk 0:02:30.7]} 14. Qc2
{[%clk 0:02:54.9]} 14... Na6 {[%clk 0:02:19.7]} 15. O-O-O {[%clk 0:02:43]} 15...
Nb4 {[%clk 0:01:49.8]} 16. Qb1 {[%clk 0:02:42]} 16... e4 {[%clk 0:01:23.9]} 17.
Nd4 {[%clk 0:02:03.8]} 17... Nfxd5 {[%clk 0:01:05]} 18. Nxd5 {[%clk 0:02:00.5]}
18... Nxd5 {[%clk 0:01:03.3]} 19. Qxe4 {[%clk 0:01:55.3]} 19... Nb4 {[%clk
0:00:54.5]} 20. Bxb4 {[%clk 0:01:47.1]} 20... axb4 {[%clk 0:00:55.4]} 21. Bd3
{[%clk 0:01:44.4]} 21... Rxa2 {[%clk 0:00:27.3]} 22. Qh7+ {[%clk 0:01:35]} 22...
Kf7 {[%clk 0:00:27.4]} 23. Bg6+ {[%clk 0:01:11.5]} 23... Kf6 {[%clk 0:00:25.6]}
24. Bh5 {[%clk 0:01:12.1]} 24... Rg8 {[%clk 0:00:01.7]} 25. Qg6+ {[%clk
0:01:10.8]} 25... Ke7 {[%clk 0:00:01.9]} 26. Qf7# {[%clk 0:01:11.3]} 1-0

[Event "Late-Titled-Tuesday-Blitz-September-19-2023"]
[Site "Chess.com"]
[Date "2023.09.19"]
[Round "5"]
[White "davigator"]
[Black "TEREZANA"]
[Result "0-1"]
[WhiteElo "2327"]
[BlackElo "2498"]
[TimeControl "180+1"]
[EndTime "14:52:52 PDT"]
[Termination "TEREZANA won by resignation"]

1. e4 {[%clk 0:02:55.7]} 1... c6 {[%clk 0:02:54.2]} 2. d4 {[%clk 0:02:55.1]}
2... d5 {[%clk 0:02:54.1]} 3. e5 {[%clk 0:02:55.3]} 3... Bf5 {[%clk 0:02:51.9]}
4. h4 {[%clk 0:02:55.5]} 4... h5 {[%clk 0:02:51]} 5. c4 {[%clk 0:02:55.3]} 5...
e6 {[%clk 0:02:48.5]} 6. Nc3 {[%clk 0:02:55.2]} 6... Bb4 {[%clk 0:02:47.1]} 7.
Bd3 {[%clk 0:02:49.5]} 7... Bxd3 {[%clk 0:02:42.3]} 8. Qxd3 {[%clk 0:02:49.5]}
8... c5 {[%clk 0:02:43.2]} 9. dxc5 {[%clk 0:02:47.6]} 9... Nc6 {[%clk
0:02:40.7]} 10. Nf3 {[%clk 0:02:44.1]} 10... d4 {[%clk 0:02:38.8]} 11. a3 {[%clk
0:02:44.1]} 11... Ba5 {[%clk 0:02:33.7]} 12. b4 {[%clk 0:02:39.7]} 12... dxc3
{[%clk 0:02:33.8]} 13. Qxc3 {[%clk 0:02:35.7]} 13... Bc7 {[%clk 0:02:32]} 14.
Bg5 {[%clk 0:02:27.1]} 14... Nge7 {[%clk 0:02:27.3]} 15. O-O {[%clk 0:02:25.9]}
15... Qb8 {[%clk 0:02:25.6]} 16. Rfe1 {[%clk 0:02:23.4]} 16... Ng6 {[%clk
0:02:19]} 17. Rad1 {[%clk 0:02:11.9]} 17... O-O {[%clk 0:02:16.5]} 18. Rd6
{[%clk 0:02:06.3]} 18... Bxd6 {[%clk 0:02:11.1]} 19. exd6 {[%clk 0:02:05.8]}
19... Qc8 {[%clk 0:02:08]} 20. b5 {[%clk 0:02:00.4]} 20... Nb8 {[%clk
0:02:02.8]} 21. Qd4 {[%clk 0:01:55.1]} 21... Nd7 {[%clk 0:01:52.1]} 22. Be3
{[%clk 0:01:51.5]} 22... e5 {[%clk 0:01:52.5]} 23. Qd5 {[%clk 0:01:50.1]} 23...
Nf6 {[%clk 0:01:49.4]} 24. Qd2 {[%clk 0:01:44.5]} 24... Qe6 {[%clk 0:01:45.5]}
25. Qb4 {[%clk 0:01:43.9]} 25... Rac8 {[%clk 0:01:39]} 26. g3 {[%clk 0:01:41.5]}
26... Nd7 {[%clk 0:01:31.4]} 27. Ng5 {[%clk 0:01:40.2]} 27... Qg4 {[%clk
0:01:26.1]} 28. Kh2 {[%clk 0:01:32.5]} 28... f6 {[%clk 0:01:04]} 29. f3 {[%clk
0:01:32]} 29... Qf5 {[%clk 0:01:04.2]} 30. c6 {[%clk 0:01:23.2]} 30... fxg5
{[%clk 0:00:52.4]} 31. cxd7 {[%clk 0:01:22.2]} 31... Qxd7 {[%clk 0:00:52.3]} 32.
hxg5 {[%clk 0:01:18]} 32... Rxf3 {[%clk 0:00:50.3]} 33. c5 {[%clk 0:01:13.8]}
33... h4 {[%clk 0:00:47.1]} 34. Qe4 {[%clk 0:01:03.5]} 34... Rxg3 {[%clk
0:00:33]} 0-1

[Event "Late-Titled-Tuesday-Blitz-September-19-2023"]
[Site "Chess.com"]
[Date "2023.09.19"]
[Round "5"]
[White "HamedWafa4"]
[Black "MAGMAchess02"]
[Result "1-0"]
[WhiteElo "2656"]
[BlackElo "2380"]
[TimeControl "180+1"]
[EndTime "14:52:55 PDT"]
[Termination "HamedWafa4 won on time"]

1. e4 {[%clk 0:03:00.9]} 1... c5 {[%clk 0:02:59.6]} 2. Nf3 {[%clk 0:03:00.3]}
2... Nc6 {[%clk 0:03:00]} 3. Bb5 {[%clk 0:02:59.4]} 3... g6 {[%clk 0:03:00.4]}
4. Bxc6 {[%clk 0:02:59.2]} 4... dxc6 {[%clk 0:03:00.2]} 5. O-O {[%clk
0:02:58.8]} 5... Bg7 {[%clk 0:02:59.8]} 6. d3 {[%clk 0:02:56.8]} 6... e5 {[%clk
0:02:59.2]} 7. a4 {[%clk 0:02:55.5]} 7... Nf6 {[%clk 0:02:54]} 8. Nxe5 {[%clk
0:02:48]} 8... O-O {[%clk 0:02:41.1]} 9. Nf3 {[%clk 0:02:47.4]} 9... c4 {[%clk
0:02:35]} 10. e5 {[%clk 0:02:45.9]} 10... Ng4 {[%clk 0:02:35.2]} 11. Re1 {[%clk
0:02:34.9]} 11... Bf5 {[%clk 0:02:22.7]} 12. h3 {[%clk 0:02:31.9]} 12... Nh6
{[%clk 0:01:41.7]} 13. Nc3 {[%clk 0:02:06.2]} 13... cxd3 {[%clk 0:01:41.2]} 14.
cxd3 {[%clk 0:02:05]} 14... Qxd3 {[%clk 0:01:40.2]} 15. Qxd3 {[%clk 0:01:54.3]}
15... Bxd3 {[%clk 0:01:41.1]} 16. g4 {[%clk 0:01:54.6]} 16... Rfe8 {[%clk
0:01:20.1]} 17. Bg5 {[%clk 0:01:44.5]} 17... Bc4 {[%clk 0:00:59.3]} 18. Rad1
{[%clk 0:01:42]} 18... Be6 {[%clk 0:00:58.3]} 19. Nd4 {[%clk 0:01:33.9]} 19...
Bd5 {[%clk 0:00:18.3]} 20. Nxd5 {[%clk 0:01:31.1]} 20... cxd5 {[%clk 0:00:19.2]}
21. f4 {[%clk 0:01:31.3]} 21... Kf8 {[%clk 0:00:16.8]} 22. Nb5 {[%clk
0:01:28.5]} 22... Rab8 {[%clk 0:00:05.8]} 23. Rxd5 {[%clk 0:01:25.9]} 23... a6
{[%clk 0:00:06.5]} 24. Nd6 {[%clk 0:01:25]} 24... Re6 {[%clk 0:00:06.1]} 25. Rc1
{[%clk 0:01:21.2]} 25... f6 {[%clk 0:00:06.4]} 26. exf6 {[%clk 0:01:17.5]} 1-0

[Event "Late-Titled-Tuesday-Blitz-September-19-2023"]
[Site "Chess.com"]
[Date "2023.09.19"]
[Round "5"]
[White "Chessdreamer2020"]
[Black "Rutricks"]
[Result "1-0"]
[WhiteElo "2543"]
[BlackElo "2704"]
[TimeControl "180+1"]
[EndTime "14:52:56 PDT"]
[Termination "Chessdreamer2020 won by resignation"]

1. e4 {[%clk 0:03:00.9]} 1... g6 {[%clk 0:02:57.6]} 2. d4 {[%clk 0:02:59.9]}
2... Bg7 {[%clk 0:02:58.5]} 3. Nc3 {[%clk 0:02:59.2]} 3... c6 {[%clk 0:02:59]}
4. Nf3 {[%clk 0:02:58.6]} 4... d5 {[%clk 0:02:59.5]} 5. h3 {[%clk 0:02:59.2]}
5... dxe4 {[%clk 0:03:00.4]} 6. Nxe4 {[%clk 0:02:59.2]} 6... Nf6 {[%clk
0:03:01.3]} 7. Nxf6+ {[%clk 0:02:59]} 7... exf6 {[%clk 0:03:02.2]} 8. Be2 {[%clk
0:02:54.2]} 8... O-O {[%clk 0:03:03.1]} 9. O-O {[%clk 0:02:54.2]} 9... a5 {[%clk
0:03:04]} 10. c3 {[%clk 0:02:53.9]} 10... Na6 {[%clk 0:03:04.4]} 11. Re1 {[%clk
0:02:52.7]} 11... Nc7 {[%clk 0:03:05.3]} 12. Bf4 {[%clk 0:02:47.6]} 12... Nd5
{[%clk 0:03:05.4]} 13. Bh2 {[%clk 0:02:47.4]} 13... Be6 {[%clk 0:03:03.4]} 14.
Bf1 {[%clk 0:02:43.4]} 14... Re8 {[%clk 0:03:01.6]} 15. Nd2 {[%clk 0:02:41.7]}
15... b6 {[%clk 0:02:48.1]} 16. Nc4 {[%clk 0:02:33]} 16... Bf8 {[%clk
0:02:41.1]} 17. Qf3 {[%clk 0:02:28]} 17... Qd7 {[%clk 0:02:22.3]} 18. Bd3 {[%clk
0:02:25.1]} 18... a4 {[%clk 0:01:52.8]} 19. a3 {[%clk 0:02:13.6]} 19... b5
{[%clk 0:01:52.2]} 20. Nd2 {[%clk 0:02:07.3]} 20... f5 {[%clk 0:01:48.7]} 21.
Re2 {[%clk 0:01:52.9]} 21... Nb6 {[%clk 0:01:42.4]} 22. Rae1 {[%clk 0:01:49.3]}
22... Bd6 {[%clk 0:00:53.9]} 23. Bf4 {[%clk 0:01:41.6]} 23... Qc7 {[%clk
0:00:50.5]} 24. Bh6 {[%clk 0:01:30]} 24... Nd5 {[%clk 0:00:43.3]} 25. h4 {[%clk
0:01:17]} 25... Bh2+ {[%clk 0:00:34.9]} 26. Kh1 {[%clk 0:01:16.5]} 26... Bf4
{[%clk 0:00:34.5]} 27. Bxf4 {[%clk 0:01:15.5]} 27... Nxf4 {[%clk 0:00:35.4]} 28.
Re5 {[%clk 0:01:11]} 28... f6 {[%clk 0:00:24.2]} 29. Qxf4 {[%clk 0:01:04.3]}
29... fxe5 {[%clk 0:00:24.7]} 30. Rxe5 {[%clk 0:01:01]} 30... Bd5 {[%clk
0:00:25]} 31. Rxe8+ {[%clk 0:01:00]} 1-0

[Event "Late-Titled-Tuesday-Blitz-September-19-2023"]
[Site "Chess.com"]
[Date "2023.09.19"]
[Round "5"]
[White "Giorno"]
[Black "AEMEffi"]
[Result "1-0"]
[WhiteElo "2468"]
[BlackElo "2321"]
[TimeControl "180+1"]
[EndTime "14:52:58 PDT"]
[Termination "Giorno won by resignation"]

1. c4 {[%clk 0:02:59.6]} 1... e5 {[%clk 0:02:58.9]} 2. Nc3 {[%clk 0:02:58.9]}
2... Nf6 {[%clk 0:02:58.2]} 3. d3 {[%clk 0:02:58.4]} 3... Nc6 {[%clk 0:02:58.7]}
4. Nf3 {[%clk 0:02:57.8]} 4... Bb4 {[%clk 0:02:54.3]} 5. Bd2 {[%clk 0:02:54.8]}
5... O-O {[%clk 0:02:53.5]} 6. e4 {[%clk 0:02:54.4]} 6... a5 {[%clk 0:02:47.6]}
7. Be2 {[%clk 0:02:54.1]} 7... h6 {[%clk 0:02:34.6]} 8. O-O {[%clk 0:02:53.1]}
8... d6 {[%clk 0:02:32.4]} 9. h3 {[%clk 0:02:52.8]} 9... Be6 {[%clk 0:02:16.6]}
10. Nd5 {[%clk 0:02:52.6]} 10... Bxd2 {[%clk 0:02:15.8]} 11. Qxd2 {[%clk
0:02:50.9]} 11... Bxd5 {[%clk 0:02:05.6]} 12. cxd5 {[%clk 0:02:51.8]} 12... Nb4
{[%clk 0:02:05.4]} 13. Nh2 {[%clk 0:02:46.7]} 13... b6 {[%clk 0:02:01.2]} 14. f4
{[%clk 0:02:41.2]} 14... c6 {[%clk 0:01:55.1]} 15. a3 {[%clk 0:02:37]} 15... Na6
{[%clk 0:01:53.4]} 16. dxc6 {[%clk 0:02:35.5]} 16... Nc5 {[%clk 0:01:53.7]} 17.
Qe3 {[%clk 0:02:28.8]} 17... Rc8 {[%clk 0:01:34.8]} 18. b4 {[%clk 0:02:27.9]}
18... Nb3 {[%clk 0:01:25.6]} 19. Rab1 {[%clk 0:02:27.9]} 19... Nd4 {[%clk
0:01:23.4]} 20. b5 {[%clk 0:02:27.5]} 20... Nc2 {[%clk 0:01:15.4]} 21. Qd2
{[%clk 0:02:26.9]} 21... Nd4 {[%clk 0:01:07.9]} 22. Nf3 {[%clk 0:02:24.2]} 22...
Nxe2+ {[%clk 0:01:04.3]} 23. Qxe2 {[%clk 0:02:24.4]} 23... exf4 {[%clk
0:01:05.2]} 24. Nd4 {[%clk 0:02:22.6]} 24... g5 {[%clk 0:01:03.1]} 25. Nf5
{[%clk 0:02:22.3]} 25... Kh7 {[%clk 0:01:02.2]} 26. g3 {[%clk 0:02:16.2]} 26...
fxg3 {[%clk 0:00:25.1]} 27. Nxg3 {[%clk 0:02:15.8]} 27... Ng8 {[%clk 0:00:25.7]}
28. Qh5 {[%clk 0:02:08.1]} 28... d5 {[%clk 0:00:22.4]} 29. e5 {[%clk 0:02:04.1]}
29... Qe7 {[%clk 0:00:22]} 30. d4 {[%clk 0:01:58.4]} 30... Rc7 {[%clk
0:00:22.4]} 31. Rf3 {[%clk 0:01:53.7]} 31... f6 {[%clk 0:00:19]} 32. Rbf1 {[%clk
0:01:51.7]} 32... Qe6 {[%clk 0:00:16.9]} 33. Rf5 {[%clk 0:01:39.9]} 33... Rcf7
{[%clk 0:00:16.3]} 34. h4 {[%clk 0:01:35.9]} 34... Kg7 {[%clk 0:00:16.2]} 35.
hxg5 {[%clk 0:01:32]} 35... hxg5 {[%clk 0:00:15.4]} 36. Qg4 {[%clk 0:01:29.4]}
36... Nh6 {[%clk 0:00:14.5]} 37. Rxg5+ {[%clk 0:01:27.4]} 37... fxg5 {[%clk
0:00:11.5]} 38. Qxe6 {[%clk 0:01:27.4]} 1-0